bitfinex/quotes_SOLUSD_20250403
["timestamp","ask_amount","ask_price","bid_price","bid_amount"]
[1743671133555,18.79181043,118.65,118.64,0.03]
[1743671133761,38.6579729,118.65,118.64,0.03]
[1743671135534,47.0860729,118.65,118.64,0.03]
[1743671135862,47.37039604,118.65,118.64,0.03]
[1743671137042,47.22823447,118.65,118.64,0.03]
[1743671137352,47.0860729,118.65,118.64,0.03]
[1743671141953,7.46,118.67,118.64,0.03]
[1743671142156,164.1242,118.71,118.64,12.43616247]
[1743671142453,12.40616247,118.69,118.64,12.43616247]
[1743671143036,0.063,118.72,118.67,12.40616247]
[1743671143248,7.46,118.71,118.68,1.6465]
[1743671143842,7.46,118.71,118.69,8.4253]
[1743671144254,0.063,118.72,118.7,6.4687]
[1743671144456,0.063,118.72,118.71,12.40616247]
[1743671145751,0.063,118.72,118.7,6.4687]
[1743671146062,0.063,118.72,118.71,20.82996247]
[1743671146856,26.063,118.74,118.72,7.6901]
[1743671147059,17.7298,118.74,118.73,12.40616247]
[1743671147234,0.063,118.75,118.73,12.40616247]
[1743671147439,0.063,118.75,118.74,12.40616247]
[1743671147653,0.063,118.75,118.74,19.35045946]
[1743671147851,0.063,118.75,118.73,19.07613357]
[1743671148050,0.063,118.75,118.74,19.35045946]
[1743671148451,0.063,118.75,118.74,8.4217]
[1743671148967,0.063,118.75,118.73,27.77255946]
[1743671149173,0.063,118.75,118.73,8.4221]
[1743671149669,0.063,118.75,118.74,19.35045946]
[1743671149964,0.063,118.75,118.73,8.4221]
[1743671150141,0.063,118.75,118.74,19.35045946]
[1743671150661,0.063,118.75,118.74,27.77215946]
[1743671154094,0.0001,118.75,118.74,66.19875249]
[1743671155286,0.0001,118.75,118.74,46.84829303]
[1743671155486,0.0001,118.75,118.74,66.19875249]
[1743671155668,0.0001,118.75,118.74,27.77215946]
[1743671155871,0.0001,118.75,118.73,8.4222]
[1743671156791,0.0001,118.75,118.72,35.46345946]
[1743671157093,0.0001,118.75,118.72,7.6901]
[1743671157579,0.0001,118.75,118.72,16.1132]
[1743671157879,0.0001,118.75,118.73,0.03]
[1743671159192,19.35045946,118.74,118.73,0.03]
[1743671159404,38.00010832,118.74,118.73,0.03]
[1743671159698,38.14226989,118.74,118.73,0.03]
[1743671159862,66.19875249,118.74,118.73,0.03]
[1743671160062,66.19875249,118.74,118.66,14.6615]
[1743671160063,26.0,118.7,118.66,6.2345]
[1743671160282,19.35045946,118.69,118.66,6.2345]
[1743671160594,19.35045946,118.67,118.64,0.03]
[1743671160878,19.35045946,118.66,118.64,0.03]
[1743671161065,26.81045946,118.66,118.64,0.03]
[1743671161263,7.46,118.66,118.64,0.03]
[1743671161775,26.81045946,118.66,118.64,0.03]
[1743671161976,19.35045946,118.65,118.64,0.03]
[1743671162570,35.23795946,118.66,118.64,0.03]
[1743671162765,26.81045946,118.66,118.64,0.03]
[1743671162970,35.23785946,118.66,118.64,0.03]
[1743671163496,19.35045946,118.65,118.64,0.03]
[1743671163794,38.14226989,118.65,118.64,0.03]
[1743671164167,46.57036989,118.65,118.64,0.03]
[1743671164496,66.85469303,118.65,118.64,0.03]
[1743671164992,46.57036989,118.65,118.64,0.03]
[1743671165163,38.00010832,118.65,118.64,0.03]
[1743671166687,19.35045946,118.65,118.64,0.03]
[1743671166875,26.81045946,118.66,118.64,0.03]
[1743671167076,19.35045946,118.65,118.64,0.03]
[1743671168068,38.00010832,118.65,118.64,0.03]
[1743671168390,46.42820832,118.65,118.64,0.03]
[1743671169996,38.00010832,118.65,118.64,0.03]
[1743671170288,19.35045946,118.65,118.64,0.03]
[1743671170796,26.81045946,118.66,118.64,0.03]
[1743671170998,19.35045946,118.65,118.64,0.03]
[1743671175785,12.41543615,118.65,118.64,0.03]
[1743671178105,148.11543615,118.66,118.64,0.03]
[1743671178389,155.57543615,118.66,118.64,0.03]
[1743671178823,148.11543615,118.66,118.64,0.03]
[1743671179005,156.54293615,118.66,118.64,0.03]
[1743671179206,12.41543615,118.65,118.64,0.03]
[1743671179396,12.41543615,118.66,118.64,0.03]
[1743671179714,155.57543615,118.67,118.64,0.03]
[1743671180208,12.41543615,118.66,118.64,0.03]
[1743671180834,38.41543615,118.65,118.64,0.03]
[1743671181196,26.0,118.65,118.64,0.03]
[1743671182206,38.41543615,118.65,118.64,0.03]
[1743671183219,26.0,118.65,118.64,0.03]
[1743671184020,38.41543615,118.65,118.64,0.03]
[1743671186930,46.84353615,118.65,118.64,0.03]
[1743671188436,38.41543615,118.65,118.64,0.03]
[1743671190035,46.84353615,118.65,118.64,0.03]
[1743671190836,34.4281,118.65,118.64,0.03]
[1743671191007,46.84353615,118.65,118.64,0.03]
[1743671195940,65.63534658,118.65,118.64,0.03]
[1743671196104,18.79181043,118.64,118.63,0.03]
[1743671196309,81.15331432,118.64,118.63,0.03]
[1743671196512,31.49156972,118.64,118.63,0.03]
[1743671197228,20.62283357,118.62,118.61,0.03]
[1743671197443,40.49826972,118.62,118.61,0.03]
[1743671197651,26.0,118.58,118.57,0.03]
[1743671197947,73.10034658,118.58,118.57,0.03]
[1743671199805,80.1179583,118.58,118.57,0.03]
[1743671201226,100.40228144,118.58,118.57,0.03]
[1743671201426,44.64964886,118.55,118.54,0.03]
[1743671201739,64.08269673,118.55,118.54,0.03]
[1743671201924,45.43304787,118.55,118.54,0.03]
[1743671202311,64.08269673,118.55,118.54,0.03]
[1743671203423,72.51789673,118.55,118.54,0.03]
[1743671204732,45.43304787,118.55,118.54,0.03]
[1743671207325,53.86824787,118.55,118.54,0.03]
[1743671207528,45.43304787,118.55,118.54,0.03]
[1743671208626,53.86824787,118.55,118.54,0.03]
[1743671210234,26.0,118.55,118.54,0.03]
[1743671213036,45.43304787,118.55,118.54,0.03]
[1743671213236,26.0,118.55,118.54,0.03]
[1743671213944,26.89304787,118.58,118.54,0.03]
[1743671214139,7.46,118.58,118.54,19.46304787]
[1743671214441,26.89304787,118.6,118.55,19.43304787]
[1743671214646,26.89304787,118.6,118.56,8.4345]
[1743671214846,19.43304787,118.59,118.56,8.4345]
[1743671215044,7.46,118.6,118.56,8.4345]
[1743671215234,19.43304787,118.59,118.56,8.4345]
[1743671215629,26.89304787,118.6,118.56,8.4345]
[1743671216542,19.43304787,118.62,118.57,19.43304787]
[1743671216730,26.89304787,118.62,118.57,27.57384787]
[1743671216924,19.43304787,118.6,118.57,8.1408]
[1743671217125,26.89304787,118.6,118.57,8.1408]
[1743671217445,19.43304787,118.59,118.55,8.4348]
[1743671218228,27.86544787,118.59,118.55,8.4348]
[1743671218435,19.43304787,118.58,118.55,8.4348]
[1743671219151,19.43304787,118.58,118.54,16.6048]
[1743671219450,19.43304787,118.58,118.54,36.03784787]
[1743671219744,12.42892099,118.58,118.54,29.03372099]
[1743671219925,0.063,118.58,118.54,29.03372099]
[1743671220944,0.063,118.58,118.54,8.1693]
[1743671220945,12.49192099,118.58,118.54,8.1693]
[1743671221145,12.49192099,118.58,118.54,16.6052]
[1743671221938,12.42892099,118.57,118.54,8.4659]
[1743671222142,148.19192099,118.58,118.54,8.4659]
[1743671224232,12.42892099,118.57,118.54,8.4659]
[1743671224554,156.62502099,118.58,118.54,8.4659]
[1743671224939,148.19192099,118.58,118.54,8.4659]
[1743671225455,156.62502099,118.58,118.54,8.4659]
[1743671226455,135.763,118.58,118.54,8.4659]
[1743671226651,148.19192099,118.58,118.54,8.4659]
[1743671226833,20.92512099,118.58,118.54,8.4659]
[1743671227329,0.063,118.58,118.56,12.42892099]
[1743671228146,0.063,118.58,118.56,20.86342099]
[1743671228661,0.063,118.58,118.57,12.71324413]
[1743671229755,0.0001,118.58,118.57,31.50505456]
[1743671229958,15.8878,118.66,118.59,0.28432314]
[1743671230140,164.01582099,118.67,118.62,12.42892099]
[1743671230334,19.88892099,118.67,118.62,12.42892099]
[1743671230539,12.42892099,118.67,118.62,12.42892099]
[1743671230756,7.46,118.69,118.65,12.42892099]
[1743671231066,0.063,118.7,118.66,12.42892099]
[1743671231262,0.063,118.7,118.68,12.42892099]
[1743671231555,0.063,118.7,118.66,12.42892099]
[1743671231755,27.87016825,118.7,118.65,21.00686825]
[1743671231952,0.063,118.7,118.66,19.38246825]
[1743671232137,0.063,118.7,118.67,27.80896825]
[1743671232759,0.063,118.7,118.67,8.4265]
[1743671233553,19.44546825,118.7,118.65,29.43446825]
[1743671234056,0.063,118.7,118.66,19.66679139]
[1743671234259,0.063,118.7,118.68,19.38246825]
[1743671236062,0.063,118.7,118.68,27.80836825]
[1743671236251,0.063,118.7,118.69,19.66679139]
[1743671236450,0.063,118.7,118.69,26.33279139]
[1743671236760,0.063,118.7,118.69,26.47495296]
[1743671238262,0.063,118.7,118.69,34.75809139]
[1743671240240,0.063,118.7,118.69,53.54990182]
[1743671241368,0.0001,118.7,118.69,55.11050182]
[1743671241550,0.0001,118.7,118.69,62.57050182]
[1743671241864,0.0001,118.75,118.74,0.42648471]
[1743671242175,0.0001,118.75,118.74,65.48977007]
[1743671243253,0.0001,118.75,118.74,27.31549139]
[1743671243856,0.0001,118.75,118.74,35.73719139]
[1743671244767,0.0001,118.75,118.74,16.35472314]
[1743671244969,0.0001,118.75,118.74,35.73719139]
[1743671245554,0.0001,118.75,118.73,8.4221]
[1743671246175,0.0001,118.75,118.73,27.80456825]
[1743671246367,0.0001,118.75,118.74,19.66679139]
[1743671246876,0.0001,118.75,118.74,0.28432314]
[1743671247471,0.0001,118.75,118.73,8.4221]
[1743671247650,0.0001,118.75,118.72,27.80526825]
[1743671247963,0.0001,118.75,118.71,27.80566825]
[1743671248377,0.0001,118.75,118.72,19.38246825]
[1743671249455,0.0001,118.75,118.73,8.4224]
[1743671249794,0.0001,118.75,118.72,0.28432314]
[1743671250086,0.0001,118.75,118.71,27.80626825]
[1743671250255,0.0001,118.75,118.72,19.38246825]
[1743671251556,0.0001,118.75,118.73,8.4224]
[1743671252075,0.0001,118.75,118.73,27.80486825]
[1743671253555,0.0001,118.75,118.73,8.4224]
[1743671254384,0.0001,118.75,118.73,27.80486825]
[1743671254685,0.0001,118.75,118.73,8.4224]
[1743671255354,0.0001,118.75,118.72,27.80526825]
[1743671255555,0.0001,118.75,118.72,8.4228]
[1743671258480,0.0001,118.75,118.72,27.80526825]
[1743671258858,0.0001,118.75,118.73,19.38246825]
[1743671259354,0.0001,118.75,118.72,48.86316825]
[1743671259561,0.0001,118.75,118.72,27.80526825]
[1743671260686,0.0001,118.75,118.72,8.4228]
[1743671261292,0.0001,118.75,118.72,27.80526825]
[1743671263993,0.0001,118.75,118.73,19.38246825]
[1743671264489,0.0001,118.75,118.72,19.38246825]
[1743671264668,0.0001,118.75,118.72,0.28432314]
[1743671264869,0.0001,118.75,118.72,19.66679139]
[1743671265767,0.0001,118.75,118.72,28.08959139]
[1743671267579,0.0001,118.75,118.72,8.70712314]
[1743671267968,19.38256825,118.75,118.7,6.6246]
[1743671268180,19.38246825,118.73,118.72,0.03]
[1743671272691,27.80486825,118.73,118.72,0.03]
[1743671273493,19.38246825,118.73,118.72,0.03]
[1743671274808,27.80486825,118.73,118.72,0.03]
[1743671277725,12.399231,118.73,118.72,0.03]
[1743671280512,20.821631,118.73,118.72,0.03]
[1743671280716,39.47127986,118.73,118.72,0.03]
[1743671281592,39.61344143,118.73,118.72,0.03]
[1743671282637,20.821631,118.73,118.72,0.03]
[1743671284115,8.4221,118.74,118.72,0.03]
[1743671284433,7.44,118.73,118.72,0.03]
[1743671284811,19.839231,118.73,118.72,0.03]
[1743671285530,28.261631,118.73,118.72,0.03]
[1743671286835,19.839231,118.73,118.72,0.03]
[1743671287004,12.399331,118.75,118.72,0.03]
[1743671287208,0.0001,118.75,118.73,0.28432314]
[1743671287417,0.0001,118.75,118.74,12.68355414]
[1743671288000,0.0001,118.75,118.73,12.399231]
[1743671288202,0.0001,118.75,118.72,0.03]
[1743671288840,0.0001,118.75,118.72,8.4531]
[1743671289606,0.0001,118.75,118.72,0.03]
[1743671290238,0.0001,118.75,118.72,12.429231]
[1743671290945,0.0001,118.75,118.73,8.4224]
[1743671291741,0.0001,118.75,118.73,20.821631]
[1743671291934,0.0001,118.75,118.74,12.399231]
[1743671292352,0.0001,118.75,118.74,12.68355414]
[1743671292845,0.0001,118.75,118.74,0.28432314]
[1743671293247,0.0001,118.75,118.74,8.70602314]
[1743671295739,0.0001,118.75,118.74,21.10525414]
[1743671297517,0.0001,118.75,118.74,39.89706457]
[1743671297717,0.0001,118.75,118.74,21.10525414]
[1743671298640,0.0001,118.75,118.74,8.70602314]
[1743671299149,0.0001,118.75,118.72,12.429231]
[1743671299435,0.0001,118.75,118.72,8.73702314]
[1743671305060,0.0001,118.75,118.72,28.10003503]
[1743671310668,0.0001,118.75,118.74,19.36301189]
[1743671311164,0.0001,118.75,118.74,19.64733503]
[1743671311536,0.0001,118.75,118.74,28.06903503]
[1743671315464,0.0001,118.75,118.74,8.70602314]
[1743671316745,0.0001,118.75,118.73,8.452]
[1743671317765,0.0001,118.75,118.73,27.81501189]
[1743671319270,0.0001,118.75,118.73,8.452]
[1743671319451,0.0001,118.75,118.74,19.64733503]
[1743671320078,0.0001,118.75,118.74,28.06903503]
[1743671320587,0.0001,118.75,118.74,46.86084546]
[1743671321078,0.0001,118.75,118.74,28.06903503]
[1743671321277,0.0001,118.75,118.74,8.70602314]
[1743671322276,0.0001,118.75,118.74,28.06903503]
[1743671323585,0.0001,118.75,118.74,8.4217]
[1743671323889,0.0001,118.75,118.74,21.093381]
[1743671324054,0.0001,118.75,118.74,8.70602314]
[1743671324671,0.0001,118.75,118.74,21.093381]
[1743671324891,0.0001,118.75,118.74,89.43462287]
[1743671325472,0.063,118.82,118.77,0.28432314]
[1743671325673,0.063,118.82,118.8,12.38735786]
[1743671326484,0.063,118.82,118.81,8.4167]
[1743671326858,0.063,118.82,118.8,8.4175]
[1743671327570,0.063,118.82,118.8,20.80485786]
[1743671327755,0.063,118.82,118.8,27.75147088]
[1743671328160,0.063,118.82,118.8,8.4175]
[1743671328372,0.063,118.82,118.79,27.75187088]
[1743671330083,0.063,118.82,118.79,48.79737088]
[1743671330781,0.063,118.82,118.79,27.75187088]
[1743671331783,0.063,118.82,118.79,48.79737088]
[1743671332989,0.063,118.82,118.79,29.4634]
[1743671333289,0.063,118.82,118.79,48.79737088]
[1743671334986,0.063,118.82,118.8,19.33397088]
[1743671337091,0.063,118.82,118.81,8.4167]
[1743671337386,0.063,118.82,118.81,27.75067088]
[1743671337579,0.063,118.82,118.81,8.4167]
[1743671339086,0.063,118.82,118.8,8.4175]
[1743671341177,0.063,118.82,118.8,19.33397088]
[1743671341382,0.063,118.82,118.81,19.33397088]
[1743671341581,0.063,118.82,118.8,19.61829402]
[1743671341783,0.063,118.82,118.79,29.4637]
[1743671341784,0.063,118.82,118.79,48.79767088]
[1743671342294,0.063,118.82,118.81,19.33397088]
[1743671343297,0.0001,118.82,118.81,28.03499402]
[1743671343482,0.063,118.85,118.82,0.42648471]
[1743671343670,0.063,118.85,118.84,19.61829402]
[1743671343996,0.0001,118.85,118.84,19.61829402]
[1743671345397,0.0001,118.85,118.84,28.03289402]
[1743671349782,0.0001,118.85,118.84,21.06110511]
[1743671356080,0.0001,118.86,118.85,0.42648471]
[1743671356275,0.0001,118.87,118.86,19.07613357]
[1743671356479,0.0001,118.87,118.86,39.85151554]
[1743671357481,0.0001,118.87,118.86,21.05970511]
[1743671361604,0.0001,118.87,118.85,8.4139]
[1743671361786,0.0001,118.87,118.84,12.36218197]
[1743671362697,0.0001,118.87,118.85,12.36218197]
[1743671363191,0.0001,118.87,118.86,12.64650511]
[1743671363403,0.0001,118.87,118.86,21.12270511]
[1743671364083,0.0001,118.87,118.86,8.4762]
[1743671365201,0.0001,118.87,118.86,0.063]
[1743671366314,0.0001,118.87,118.86,12.42518197]
[1743671366517,0.0001,118.87,118.86,12.70950511]
[1743671367301,0.0001,118.87,118.86,21.12270511]
[1743671367823,0.0001,118.87,118.86,8.76052314]
[1743671368023,0.0001,118.87,118.86,21.12270511]
[1743671369134,0.0001,118.87,118.86,20.83838197]
[1743671369307,0.0001,118.87,118.86,8.4762]
[1743671370433,0.0001,118.87,118.86,0.063]
[1743671375345,19.80228197,118.87,118.86,0.063]
[1743671375512,21.32028197,118.87,118.86,0.063]
[1743671375840,8.9581,118.87,118.86,0.063]
[1743671376007,7.4401,118.87,118.86,0.063]
[1743671379337,19.80228197,118.87,118.86,0.063]
[1743671379844,45.80228197,118.87,118.86,0.063]
[1743671380220,33.4401,118.87,118.86,0.063]
[1743671380549,41.8526,118.87,118.86,0.063]
[1743671380745,54.21478197,118.87,118.86,0.063]
[1743671384754,54.35694354,118.87,118.86,0.063]
[1743671384928,62.37924354,118.87,118.86,0.063]
[1743671388128,198.07924354,118.87,118.86,0.063]
[1743671391157,179.25476157,118.87,118.86,0.063]
[1743671391360,191.61694354,118.87,118.86,0.063]
[1743671392057,165.61694354,118.87,118.86,0.063]
[1743671392940,233.71532028,118.87,118.86,0.063]
[1743671393459,184.2665924,118.87,118.86,0.063]
[1743671393627,48.5665924,118.87,118.86,0.063]
[1743671393949,17.55476157,118.87,118.86,0.063]
[1743671394254,29.91694354,118.87,118.86,0.063]
[1743671395652,22.47694354,118.87,118.86,0.063]
[1743671395852,29.91694354,118.87,118.86,0.063]
[1743671396854,184.2665924,118.87,118.86,0.063]
[1743671400054,233.71532028,118.87,118.86,0.063]
[1743671401649,184.2665924,118.87,118.86,0.063]
[1743671402754,48.5665924,118.87,118.86,0.063]
[1743671404646,98.01532028,118.87,118.86,0.063]
[1743671405477,48.5665924,118.87,118.86,0.063]
[1743671407580,48.85091554,118.87,118.79,12.36218197]
[1743671407757,48.85091554,118.87,118.72,32.592371]
[1743671407758,12.36218197,118.8,118.75,7.6022]
[1743671407964,38.79181043,118.83,118.75,7.6022]
[1743671407965,12.36218197,118.78,118.75,7.6022]
[1743671408168,19.80218197,118.78,118.75,7.6022]
[1743671408469,28.22138197,118.78,118.75,7.6022]
[1743671408678,19.80218197,118.78,118.75,7.6022]
[1743671409188,12.36218197,118.77,118.74,0.063]
[1743671409355,12.36218197,118.75,118.74,0.063]
[1743671410869,20.78318197,118.75,118.74,0.063]
[1743671411481,12.36218197,118.75,118.74,0.063]
[1743671414980,175.2749924,118.75,118.74,0.063]
[1743671415855,225.00804342,118.75,118.74,0.063]
[1743671416076,109.30804342,118.75,118.74,0.063]
[1743671417164,19.07613357,118.74,118.73,0.03]
[1743671417365,88.32704342,118.74,118.72,0.03]
[1743671417683,12.36218197,118.73,118.72,0.03]
[1743671417889,12.36218197,118.73,118.69,0.063]
[1743671417890,0.14216157,118.72,118.69,0.063]
[1743671418063,44.79181043,118.7,118.69,0.063]
[1743671418262,64.5939924,118.7,118.69,0.063]
[1743671419263,73.0184924,118.7,118.69,0.063]
[1743671420270,65.5784924,118.7,118.69,0.063]
[1743671420586,73.0184924,118.7,118.69,0.063]
[1743671420785,26.0,118.66,118.63,0.03]
[1743671420965,12.36218197,118.64,118.63,0.03]
[1743671421166,19.80218197,118.65,118.63,0.03]
[1743671422093,19.80218197,118.65,118.63,8.4595]
[1743671422396,7.44,118.65,118.63,8.4595]
[1743671422966,19.80218197,118.65,118.63,0.03]
[1743671423188,12.36218197,118.64,118.63,0.03]
[1743671426192,39.5827924,118.64,118.63,0.03]
[1743671426870,31.1539924,118.64,118.63,0.03]
[1743671427871,39.5827924,118.64,118.63,0.03]
[1743671428773,31.1539924,118.64,118.63,0.03]
[1743671429082,12.36218197,118.64,118.63,0.03]
[1743671429993,12.36218197,118.65,118.63,0.03]
[1743671431174,12.36218197,118.66,118.63,0.03]
[1743671431376,19.80218197,118.66,118.63,0.03]
[1743671431577,7.44,118.66,118.63,0.03]
[1743671431783,19.80218197,118.66,118.63,0.03]
[1743671432498,12.36218197,118.65,118.63,0.03]
[1743671432683,19.80218197,118.66,118.63,0.03]
[1743671433077,12.36218197,118.65,118.63,0.03]
[1743671434389,7.44,118.66,118.63,0.03]
[1743671435402,19.80218197,118.66,118.63,0.03]
[1743671435706,12.36218197,118.64,118.63,0.03]
[1743671436791,20.79098197,118.64,118.63,0.03]
[1743671436989,12.36218197,118.64,118.63,0.03]
[1743671437605,39.5827924,118.64,118.63,0.03]
[1743671439280,12.36218197,118.64,118.63,0.03]
[1743671444103,31.1539924,118.64,118.63,0.03]
[1743671444289,39.5827924,118.64,118.63,0.03]
[1743671445487,31.1539924,118.64,118.63,0.03]
[1743671445786,12.36218197,118.64,118.63,0.03]
[1743671447214,15.8675,118.66,118.63,0.03]
[1743671447396,12.36218197,118.65,118.63,0.03]
[1743671447588,19.80218197,118.66,118.63,0.03]
[1743671448589,12.36218197,118.64,118.63,0.03]
[1743671454419,26.0,118.64,118.63,0.03]
[1743671454917,38.36218197,118.64,118.63,0.03]
[1743671458101,65.5827924,118.64,118.63,0.03]
[1743671458303,59.5827924,118.64,118.63,0.03]
[1743671458510,59.5827924,118.64,118.62,0.063]
[1743671458708,12.36218197,118.63,118.62,0.063]
[1743671459302,70.24040985,118.63,118.62,0.063]
[1743671460421,89.31654342,118.63,118.62,0.063]
[1743671461109,39.07613357,118.62,118.61,0.03]
[1743671461310,108.32704342,118.62,118.61,0.03]
[1743671462633,116.75724342,118.62,118.61,0.03]
[1743671463422,96.47292028,118.62,118.61,0.03]
[1743671463615,12.36218197,118.62,118.61,0.03]
[1743671463819,19.80218197,118.62,118.61,0.03]
[1743671464426,20.0,118.66,118.61,0.03]
[1743671464622,12.36218197,118.63,118.61,0.03]
[1743671467629,19.80218197,118.64,118.61,0.03]
[1743671467932,18.71264886,118.69,118.61,12.39218197]
[1743671468135,18.71264886,118.69,118.63,12.36218197]
[1743671468136,7.44,118.68,118.63,12.36218197]
[1743671468325,19.30218197,118.68,118.64,20.36038197]
[1743671468647,6.94,118.68,118.64,20.36038197]
[1743671468848,19.30218197,118.68,118.64,7.9982]
[1743671469146,12.36218197,118.66,118.61,20.53498197]
[1743671469619,12.36218197,118.67,118.62,20.79208197]
[1743671469946,12.36218197,118.67,118.63,12.36218197]
[1743671470548,12.36218197,118.68,118.63,12.36218197]
[1743671471066,12.36218197,118.68,118.64,8.4288]
[1743671471677,12.36218197,118.67,118.64,8.4288]
[1743671471987,12.36218197,118.66,118.63,8.4295]
[1743671472482,12.36218197,118.65,118.62,8.4299]
[1743671472785,0.14216157,118.67,118.62,8.4299]
[1743671472786,12.36218197,118.66,118.62,8.4299]
[1743671472990,26.0,118.66,118.62,20.79208197]
[1743671473158,12.36218197,118.67,118.62,41.86778197]
[1743671476778,12.36218197,118.66,118.62,8.4299]
[1743671478261,20.78968197,118.66,118.62,8.4299]
[1743671478952,12.36218197,118.66,118.62,8.4299]
[1743671479154,12.36218197,118.66,118.61,8.4606]
[1743671479155,12.36218197,118.63,118.61,8.4606]
[1743671479364,12.36218197,118.63,118.61,0.03]
[1743671480363,12.36218197,118.64,118.61,0.03]
[1743671480562,15.8684,118.65,118.61,0.03]
[1743671480888,12.36218197,118.62,118.61,0.03]
[1743671483894,39.5841924,118.62,118.61,0.03]
[1743671488514,89.03292028,118.62,118.61,0.03]
[1743671488717,39.5841924,118.62,118.61,0.03]
[1743671489589,12.36218197,118.62,118.61,0.03]
[1743671491588,20.79238197,118.62,118.61,0.03]
[1743671492619,39.5841924,118.62,118.61,0.03]
[1743671493492,89.03292028,118.62,118.61,0.03]
[1743671494707,39.5841924,118.62,118.61,0.03]
[1743671495424,89.03292028,118.62,118.61,0.03]
[1743671496922,109.31724342,118.62,118.61,0.03]
[1743671497830,59.5841924,118.62,118.61,0.03]
[1743671498125,39.5841924,118.62,118.61,0.03]
[1743671499032,89.03292028,118.62,118.61,0.03]
[1743671499522,39.5841924,118.62,118.61,0.03]
[1743671502427,39.86851554,118.62,118.61,0.03]
[1743671502607,109.31724342,118.62,118.61,0.03]
[1743671505230,39.5841924,118.62,118.61,0.03]
[1743671506425,19.80218197,118.62,118.61,0.03]
[1743671507510,12.36218197,118.62,118.61,0.03]
[1743671507825,12.36218197,118.64,118.61,0.03]
[1743671508026,19.80218197,118.64,118.61,0.03]
[1743671508199,12.36218197,118.64,118.61,8.4609]
[1743671509721,12.36218197,118.62,118.61,0.03]
[1743671510123,12.36218197,118.63,118.61,0.03]
[1743671512030,133.49108197,118.64,118.61,0.03]
[1743671512232,12.36218197,118.63,118.61,0.03]
[1743671513338,20.79178197,118.63,118.61,0.03]
[1743671513639,12.36218197,118.62,118.61,0.03]
[1743671514339,20.79238197,118.62,118.61,0.03]
[1743671514931,39.5841924,118.62,118.61,0.03]
[1743671515327,214.09510225,118.62,118.61,0.03]
[1743671515530,89.03292028,118.62,118.61,0.03]
[1743671515728,109.31724342,118.62,118.61,0.03]
[1743671516425,39.5841924,118.62,118.61,0.03]
[1743671517723,89.03292028,118.62,118.61,0.03]
[1743671518643,39.5841924,118.62,118.61,0.03]
[1743671519960,12.36218197,118.62,118.61,0.03]
[1743671520325,31.1539924,118.62,118.61,0.03]
[1743671522145,27.22201043,118.62,118.61,0.03]
[1743671522322,39.5841924,118.62,118.61,0.03]
[1743671524128,109.31724342,118.62,118.61,0.03]
[1743671524750,39.5841924,118.62,118.61,0.03]
[1743671525426,12.36218197,118.62,118.61,0.03]
[1743671525720,12.36218197,118.63,118.61,0.03]
[1743671525924,148.06218197,118.64,118.61,0.03]
[1743671526345,0.063,118.65,118.61,12.39218197]
[1743671527250,12.42518197,118.65,118.61,0.03]
[1743671527549,12.42518197,118.65,118.61,8.4609]
[1743671527750,19.46082566,118.65,118.61,8.4609]
[1743671530628,0.063,118.65,118.61,8.4609]
[1743671530854,0.063,118.65,118.62,19.39782566]
[1743671531234,0.063,118.65,118.62,0.28432314]
[1743671531735,0.063,118.65,118.63,8.4295]
[1743671531936,0.063,118.65,118.62,8.4299]
[1743671532654,19.39782566,118.64,118.61,8.4608]
[1743671533157,19.39782566,118.64,118.61,0.03]
[1743671534357,27.82672566,118.64,118.61,0.03]
[1743671534564,19.39782566,118.64,118.61,0.03]
[1743671535460,27.82662566,118.64,118.61,0.03]